[Event "*** SCC Grand Prix: Titled Tuesday Blitz"]
[Site "Chess.com"]
[Date "2020.10.13"]
[Round "5"]
[White "Loy_Konstantin"]
[Black "Chamal_Gedgafov"]
[Result "1-0"]
[WhiteElo "2353"]
[BlackElo "2168"]
[TimeControl "180+1"]
[EndTime "10:56:28 PDT"]
[Termination "Loy_Konstantin won on time"]

1. e4 {[%clk 0:03:00.9]} 1... e6 {[%clk 0:02:09.1]} 2. d3 {[%clk 0:02:59.6]}
2... c5 {[%clk 0:02:02.8]} 3. Nf3 {[%clk 0:02:59.3]} 3... Nc6 {[%clk 0:02:01.2]}
4. g3 {[%clk 0:02:59.4]} 4... d6 {[%clk 0:01:59.6]} 5. Bg2 {[%clk 0:02:59.5]}
5... Nf6 {[%clk 0:02:00.1]} 6. O-O {[%clk 0:02:58.5]} 6... Be7 {[%clk 0:02:01]}
7. Re1 {[%clk 0:02:49]} 7... Qc7 {[%clk 0:02:00.4]} 8. c3 {[%clk 0:02:47.3]}
8... O-O {[%clk 0:01:58.9]} 9. d4 {[%clk 0:02:46.8]} 9... e5 {[%clk 0:01:58.5]}
10. h3 {[%clk 0:02:43.1]} 10... cxd4 {[%clk 0:01:47.7]} 11. cxd4 {[%clk
0:02:44]} 11... exd4 {[%clk 0:01:47.3]} 12. Nxd4 {[%clk 0:02:44.9]} 12... Nxd4
{[%clk 0:01:47.3]} 13. Qxd4 {[%clk 0:02:45.5]} 13... Nd7 {[%clk 0:01:43.8]} 14.
Nc3 {[%clk 0:02:34.2]} 14... Bf6 {[%clk 0:01:41.2]} 15. Nd5 {[%clk 0:02:21.4]}
15... Bxd4 {[%clk 0:01:37.3]} 16. Nxc7 {[%clk 0:02:21]} 16... Rb8 {[%clk
0:01:37.5]} 17. Rb1 {[%clk 0:02:01.3]} 17... Ne5 {[%clk 0:01:35.4]} 18. Be3
{[%clk 0:01:49.5]} 18... Bc5 {[%clk 0:01:12.6]} 19. b4 {[%clk 0:01:29]} 19...
Bxe3 {[%clk 0:01:10.8]} 20. Rxe3 {[%clk 0:01:28.4]} 20... Be6 {[%clk 0:00:53.3]}
21. Nxe6 {[%clk 0:01:17.2]} 21... fxe6 {[%clk 0:00:51.3]} 22. f4 {[%clk
0:01:17.7]} 22... Nc4 {[%clk 0:00:48.8]} 23. Rd3 {[%clk 0:01:10.3]} 23... b5
{[%clk 0:00:44.1]} 24. Rd4 {[%clk 0:01:07.8]} 24... Rfc8 {[%clk 0:00:31.3]} 25.
Bf1 {[%clk 0:01:04.4]} 25... Rb6 {[%clk 0:00:29.7]} 26. Rc1 {[%clk 0:00:55.3]}
26... Rbc6 {[%clk 0:00:21.4]} 27. Kf2 {[%clk 0:00:48.1]} 27... Kf7 {[%clk
0:00:20.4]} 28. Bxc4 {[%clk 0:00:40.6]} 28... bxc4 {[%clk 0:00:19.9]} 29. Ke3
{[%clk 0:00:34]} 29... Ke7 {[%clk 0:00:19.9]} 30. Kd2 {[%clk 0:00:32.2]} 30...
Kd7 {[%clk 0:00:18.8]} 31. Kc3 {[%clk 0:00:32]} 31... Ra6 {[%clk 0:00:18.8]} 32.
Kb2 {[%clk 0:00:26.5]} 32... c3+ {[%clk 0:00:19]} 33. Kb3 {[%clk 0:00:24.3]}
33... c2 {[%clk 0:00:19.1]} 34. Rd2 {[%clk 0:00:22.5]} 34... Rb6 {[%clk
0:00:11.6]} 35. a3 {[%clk 0:00:21.8]} 35... a5 {[%clk 0:00:10.4]} 36. Rdxc2
{[%clk 0:00:21.9]} 36... Rcb8 {[%clk 0:00:09.3]} 37. Rc7+ {[%clk 0:00:21.4]}
37... Kd8 {[%clk 0:00:08.5]} 38. R7c4 {[%clk 0:00:21.3]} 38... axb4 {[%clk
0:00:07.7]} 39. Rxb4 {[%clk 0:00:21.2]} 39... Rxb4+ {[%clk 0:00:07.4]} 40. axb4
{[%clk 0:00:22.1]} 40... Kd7 {[%clk 0:00:07.5]} 41. Ra1 {[%clk 0:00:20.7]} 41...
Rb7 {[%clk 0:00:04.8]} 42. Ra8 {[%clk 0:00:18.6]} 42... Rc7 {[%clk 0:00:04.6]}
43. b5 {[%clk 0:00:17.2]} 43... Rc1 {[%clk 0:00:03]} 44. Ra7+ {[%clk 0:00:16.5]}
44... Ke8 {[%clk 0:00:02.7]} 45. Rxg7 {[%clk 0:00:16.1]} 1-0

[Event "*** SCC Grand Prix: Titled Tuesday Blitz"]
[Site "Chess.com"]
[Date "2020.10.13"]
[Round "5"]
[White "jamalm2"]
[Black "Matveev_Vladimir"]
[Result "0-1"]
[WhiteElo "1787"]
[BlackElo "2677"]
[TimeControl "180+1"]
[EndTime "10:56:29 PDT"]
[Termination "Matveev_Vladimir won on time"]

1. Nf3 {[%clk 0:03:00.1]} 1... Nf6 {[%clk 0:02:59.8]} 2. c4 {[%clk 0:02:56.5]}
2... g6 {[%clk 0:03:00.1]} 3. d4 {[%clk 0:02:54.6]} 3... Bg7 {[%clk 0:03:01]} 4.
Nc3 {[%clk 0:02:54]} 4... O-O {[%clk 0:03:01.9]} 5. e4 {[%clk 0:02:53.4]} 5...
d6 {[%clk 0:03:01.9]} 6. Be2 {[%clk 0:02:52.3]} 6... e5 {[%clk 0:03:02.2]} 7.
Bg5 {[%clk 0:02:48.8]} 7... exd4 {[%clk 0:02:57.8]} 8. Nxd4 {[%clk 0:02:46.6]}
8... Nc6 {[%clk 0:02:54.9]} 9. Nxc6 {[%clk 0:02:39.3]} 9... bxc6 {[%clk
0:02:55.8]} 10. Qd2 {[%clk 0:02:33.9]} 10... Qe8 {[%clk 0:02:46.9]} 11. Bf3
{[%clk 0:02:10.3]} 11... Rb8 {[%clk 0:02:43.5]} 12. O-O {[%clk 0:02:07.3]} 12...
Be6 {[%clk 0:02:43.6]} 13. b3 {[%clk 0:02:03.3]} 13... Nd7 {[%clk 0:02:41.9]}
14. Rac1 {[%clk 0:01:58.3]} 14... Ne5 {[%clk 0:02:34.2]} 15. Be2 {[%clk
0:01:57.2]} 15... c5 {[%clk 0:02:34.6]} 16. Bh6 {[%clk 0:01:53.8]} 16... Nc6
{[%clk 0:02:33.4]} 17. Bxg7 {[%clk 0:01:51.8]} 17... Kxg7 {[%clk 0:02:34.3]} 18.
Nd5 {[%clk 0:01:50.5]} 18... Bxd5 {[%clk 0:02:20.8]} 19. exd5 {[%clk 0:01:47.8]}
19... Nd4 {[%clk 0:02:21]} 20. Bd3 {[%clk 0:01:44.8]} 20... Qd8 {[%clk
0:02:17.9]} 21. Rce1 {[%clk 0:01:41.3]} 21... Qf6 {[%clk 0:02:13.3]} 22. Qa5
{[%clk 0:01:35.7]} 22... Rb7 {[%clk 0:02:00.9]} 23. Re4 {[%clk 0:01:26.4]} 23...
Qg5 {[%clk 0:01:43.4]} 24. f4 {[%clk 0:01:24.9]} 24... Qd8 {[%clk 0:01:37.9]}
25. Rfe1 {[%clk 0:01:21.8]} 25... c6 {[%clk 0:01:24.4]} 26. Qxd8 {[%clk
0:01:18.3]} 26... Rxd8 {[%clk 0:01:25.3]} 27. dxc6 {[%clk 0:01:14.6]} 27... Nxc6
{[%clk 0:01:26.2]} 28. Re8 {[%clk 0:01:08]} 28... Rbd7 {[%clk 0:01:19.3]} 29. f5
{[%clk 0:01:03.7]} 29... g5 {[%clk 0:01:12.9]} 30. Rxd8 {[%clk 0:00:59.3]} 30...
Rxd8 {[%clk 0:01:12.8]} 31. Be4 {[%clk 0:00:58.9]} 31... Re8 {[%clk 0:01:08.3]}
32. Kf2 {[%clk 0:00:55.9]} 32... Nd4 {[%clk 0:01:02.4]} 33. Bd5 {[%clk
0:00:51.7]} 33... Rxe1 {[%clk 0:01:02.4]} 34. Kxe1 {[%clk 0:00:50.9]} 34... Nxf5
{[%clk 0:01:03.3]} 35. Ke2 {[%clk 0:00:46.9]} 35... Nd4+ {[%clk 0:01:02.5]} 36.
Kd3 {[%clk 0:00:45.8]} 36... a5 {[%clk 0:01:03.4]} 37. Ke4 {[%clk 0:00:37.8]}
37... f5+ {[%clk 0:01:03.3]} 38. Kd3 {[%clk 0:00:33]} 38... Kf6 {[%clk
0:01:04.2]} 39. Kc3 {[%clk 0:00:27.9]} 39... Ke5 {[%clk 0:01:03.3]} 40. a3
{[%clk 0:00:26.8]} 40... h6 {[%clk 0:01:03]} 41. b4 {[%clk 0:00:25.5]} 41...
axb4+ {[%clk 0:01:03.9]} 42. axb4 {[%clk 0:00:24.5]} 42... cxb4+ {[%clk
0:01:04.8]} 43. Kxb4 {[%clk 0:00:23.9]} 43... Nc2+ {[%clk 0:00:59.3]} 44. Kc3
{[%clk 0:00:22.7]} 44... Ne3 {[%clk 0:01:00.2]} 45. Bb7 {[%clk 0:00:19.4]} 45...
Nf1 {[%clk 0:00:57.3]} 46. h3 {[%clk 0:00:17.4]} 46... Ne3 {[%clk 0:00:54.7]}
47. Kd3 {[%clk 0:00:17.1]} 47... f4 {[%clk 0:00:55.2]} 48. Bf3 {[%clk
0:00:12.6]} 48... Nf5 {[%clk 0:00:51.5]} 49. Bb7 {[%clk 0:00:08.8]} 49... Nd4
{[%clk 0:00:51.7]} 50. Bd5 {[%clk 0:00:04.7]} 50... Ne6 {[%clk 0:00:52.6]} 51.
Bxe6 {[%clk 0:00:02.3]} 51... Kxe6 {[%clk 0:00:53.5]} 52. Ke4 {[%clk 0:00:02]}
52... h5 {[%clk 0:00:50.4]} 53. h4 {[%clk 0:00:00.9]} 53... Kf6 {[%clk
0:00:50.6]} 0-1

[Event "*** SCC Grand Prix: Titled Tuesday Blitz"]
[Site "Chess.com"]
[Date "2020.10.13"]
[Round "5"]
[White "orestn"]
[Black "djano"]
[Result "0-1"]
[WhiteElo "2305"]
[BlackElo "2458"]
[TimeControl "180+1"]
[EndTime "10:56:33 PDT"]
[Termination "djano won on time"]

1. e4 {[%clk 0:02:32]} 1... g6 {[%clk 0:02:59.3]} 2. d4 {[%clk 0:02:31.7]} 2...
Bg7 {[%clk 0:02:59.2]} 3. Nc3 {[%clk 0:02:32.6]} 3... a6 {[%clk 0:02:59.1]} 4.
Nf3 {[%clk 0:02:32.4]} 4... b5 {[%clk 0:02:59.3]} 5. Bd3 {[%clk 0:02:32.3]} 5...
Bb7 {[%clk 0:02:59.5]} 6. a4 {[%clk 0:02:31.2]} 6... b4 {[%clk 0:02:57.2]} 7.
Ne2 {[%clk 0:02:31.5]} 7... d6 {[%clk 0:02:42.4]} 8. h4 {[%clk 0:02:27.3]} 8...
h6 {[%clk 0:02:41]} 9. c3 {[%clk 0:02:21.6]} 9... a5 {[%clk 0:02:31.3]} 10. Ng3
{[%clk 0:02:20.1]} 10... e6 {[%clk 0:02:12.5]} 11. h5 {[%clk 0:01:59.8]} 11...
g5 {[%clk 0:02:11.9]} 12. Nh2 {[%clk 0:02:00.3]} 12... Nd7 {[%clk 0:02:06.9]}
13. Qe2 {[%clk 0:01:55.9]} 13... bxc3 {[%clk 0:02:04.4]} 14. bxc3 {[%clk
0:01:55.4]} 14... c5 {[%clk 0:02:04.9]} 15. Be3 {[%clk 0:01:50.2]} 15... Ngf6
{[%clk 0:01:56.8]} 16. Rb1 {[%clk 0:01:47.9]} 16... Bc6 {[%clk 0:01:52.8]} 17.
O-O {[%clk 0:01:37.5]} 17... Qc7 {[%clk 0:01:39.2]} 18. f4 {[%clk 0:01:28.1]}
18... c4 {[%clk 0:01:31.3]} 19. Bc2 {[%clk 0:01:25.7]} 19... gxf4 {[%clk
0:01:15]} 20. Bxf4 {[%clk 0:01:24.5]} 20... e5 {[%clk 0:01:15.4]} 21. Be3 {[%clk
0:01:20.2]} 21... Rg8 {[%clk 0:00:50.6]} 22. Ng4 {[%clk 0:01:09.5]} 22... Nxg4
{[%clk 0:00:41.7]} 23. Qxg4 {[%clk 0:01:08.9]} 23... Kf8 {[%clk 0:00:31.9]} 24.
Nf5 {[%clk 0:00:57.2]} 24... Nf6 {[%clk 0:00:28.5]} 25. Qh4 {[%clk 0:00:52.8]}
25... Bh8 {[%clk 0:00:16.8]} 26. Bxh6+ {[%clk 0:00:50.1]} 26... Ke8 {[%clk
0:00:17.2]} 27. d5 {[%clk 0:00:38.6]} 27... Bd7 {[%clk 0:00:15.4]} 28. Bg5
{[%clk 0:00:28.9]} 28... Nh7 {[%clk 0:00:11.3]} 29. Be3 {[%clk 0:00:22.7]} 29...
Bf6 {[%clk 0:00:11.5]} 30. Qf2 {[%clk 0:00:20.8]} 30... Rc8 {[%clk 0:00:09.1]}
31. Bb6 {[%clk 0:00:20.3]} 31... Qb8 {[%clk 0:00:09]} 32. Bxa5 {[%clk
0:00:18.6]} 32... Qa8 {[%clk 0:00:09.4]} 33. Nxd6+ {[%clk 0:00:17.4]} 33... Ke7
{[%clk 0:00:07.6]} 34. Bb4 {[%clk 0:00:14.5]} 34... Kd8 {[%clk 0:00:03.7]} 35.
Nxf7+ {[%clk 0:00:12.8]} 35... Ke8 {[%clk 0:00:04]} 36. Nd6+ {[%clk 0:00:12.6]}
36... Kd8 {[%clk 0:00:04.5]} 37. Nxc8 {[%clk 0:00:12.5]} 37... Qxc8 {[%clk
0:00:05.2]} 38. Qb6+ {[%clk 0:00:10.5]} 38... Ke8 {[%clk 0:00:03.7]} 39. Rxf6
{[%clk 0:00:08.9]} 39... Nxf6 {[%clk 0:00:04.2]} 40. Qxf6 {[%clk 0:00:08]} 40...
Bh3 {[%clk 0:00:04.9]} 41. Qc6+ {[%clk 0:00:02.5]} 41... Qd7 {[%clk 0:00:03.1]}
42. Qxd7+ {[%clk 0:00:02.1]} 42... Bxd7 {[%clk 0:00:03.8]} 43. Kf2 {[%clk
0:00:01.5]} 43... Rh8 {[%clk 0:00:02.5]} 0-1

[Event "*** SCC Grand Prix: Titled Tuesday Blitz"]
[Site "Chess.com"]
[Date "2020.10.13"]
[Round "5"]
[White "NiranjanNavalgund"]
[Black "ExcitingTrap"]
[Result "1-0"]
[WhiteElo "2445"]
[BlackElo "2291"]
[TimeControl "180+1"]
[EndTime "10:56:37 PDT"]
[Termination "NiranjanNavalgund won by resignation"]

1. d4 {[%clk 0:03:00.9]} 1... Nf6 {[%clk 0:02:59.8]} 2. c4 {[%clk 0:03:01]} 2...
g6 {[%clk 0:02:59.7]} 3. Nc3 {[%clk 0:03:00.2]} 3... Bg7 {[%clk 0:03:00]} 4. e4
{[%clk 0:02:58]} 4... d6 {[%clk 0:02:58.7]} 5. Bd3 {[%clk 0:02:58.4]} 5... O-O
{[%clk 0:02:55.9]} 6. Nge2 {[%clk 0:02:58.5]} 6... c5 {[%clk 0:02:44.2]} 7. d5
{[%clk 0:02:58.7]} 7... e6 {[%clk 0:02:41.1]} 8. h3 {[%clk 0:02:58.1]} 8... exd5
{[%clk 0:02:38.7]} 9. exd5 {[%clk 0:02:59]} 9... Re8 {[%clk 0:02:37.9]} 10. O-O
{[%clk 0:02:58.2]} 10... a6 {[%clk 0:02:37.9]} 11. Bg5 {[%clk 0:02:52.4]} 11...
Nbd7 {[%clk 0:02:37]} 12. f4 {[%clk 0:02:46]} 12... Nf8 {[%clk 0:02:21.5]} 13.
Bh4 {[%clk 0:02:41.5]} 13... Rb8 {[%clk 0:02:17.7]} 14. f5 {[%clk 0:02:41.3]}
14... N8d7 {[%clk 0:02:12.9]} 15. fxg6 {[%clk 0:02:40.1]} 15... hxg6 {[%clk
0:02:13.8]} 16. Nf4 {[%clk 0:02:36]} 16... Ne5 {[%clk 0:02:06.2]} 17. Be2 {[%clk
0:02:36.1]} 17... Bd7 {[%clk 0:02:00.2]} 18. Ne4 {[%clk 0:02:32.2]} 18... Bf5
{[%clk 0:01:55.5]} 19. Ng3 {[%clk 0:02:28.8]} 19... Bc8 {[%clk 0:01:42.8]} 20.
Rc1 {[%clk 0:02:23.6]} 20... b5 {[%clk 0:01:34.2]} 21. cxb5 {[%clk 0:02:22.6]}
21... axb5 {[%clk 0:01:35.1]} 22. Kh1 {[%clk 0:02:22.7]} 22... c4 {[%clk
0:01:24.1]} 23. Ne4 {[%clk 0:02:20.3]} 23... Ned7 {[%clk 0:01:21.3]} 24. Nxd6
{[%clk 0:02:19.5]} 24... Re5 {[%clk 0:01:17]} 25. Nxc8 {[%clk 0:02:13.4]} 25...
Rxc8 {[%clk 0:01:14.8]} 26. Bg3 {[%clk 0:02:09.1]} 26... Re3 {[%clk 0:01:13.5]}
27. Bf2 {[%clk 0:02:07.7]} 27... Re8 {[%clk 0:01:13]} 28. Bf3 {[%clk 0:02:06.6]}
28... Qa5 {[%clk 0:01:07.9]} 29. a3 {[%clk 0:02:03.1]} 29... Ne5 {[%clk
0:01:07.9]} 30. Be2 {[%clk 0:01:55.8]} 30... Rcd8 {[%clk 0:01:07]} 31. Bc5
{[%clk 0:01:38.6]} 31... Ne4 {[%clk 0:01:01.8]} 32. Bf2 {[%clk 0:01:36]} 32...
Bh6 {[%clk 0:00:57.1]} 33. Be1 {[%clk 0:01:31.8]} 33... Qc7 {[%clk 0:00:53.3]}
34. Qd4 {[%clk 0:01:24.1]} 34... Nc6 {[%clk 0:00:49.7]} 35. Qe3 {[%clk 0:01:15]}
35... Nf6 {[%clk 0:00:33.2]} 36. Qf3 {[%clk 0:01:11.8]} 36... Nd4 {[%clk
0:00:30.9]} 37. Qf2 {[%clk 0:01:03.2]} 37... Bxf4 {[%clk 0:00:12.9]} 38. Qxd4
{[%clk 0:01:02.8]} 38... Bxc1 {[%clk 0:00:07]} 39. Qxf6 {[%clk 0:01:02.9]} 39...
Qe7 {[%clk 0:00:06.1]} 40. Qd4 {[%clk 0:00:56.7]} 40... Qxe2 {[%clk 0:00:04.9]}
41. Bc3 {[%clk 0:00:56.5]} 41... Re5 {[%clk 0:00:02.8]} 42. Qxe5 {[%clk
0:00:56]} 42... Qxe5 {[%clk 0:00:03.3]} 43. Bxe5 {[%clk 0:00:56.9]} 43... Rxd5
{[%clk 0:00:03.7]} 44. Bf6 {[%clk 0:00:57.1]} 44... Be3 {[%clk 0:00:03.1]} 45.
Re1 {[%clk 0:00:57.1]} 45... Bc5 {[%clk 0:00:02.5]} 46. Re8+ {[%clk 0:00:56.8]}
46... Bf8 {[%clk 0:00:01.6]} 47. Be7 {[%clk 0:00:57]} 47... Rd1+ {[%clk
0:00:02.1]} 48. Kh2 {[%clk 0:00:56.7]} 48... Re1 {[%clk 0:00:02.3]} 49. Rxf8+
{[%clk 0:00:56.1]} 49... Kg7 {[%clk 0:00:03]} 50. Re8 {[%clk 0:00:56.5]} 50...
Re6 {[%clk 0:00:03.2]} 51. Bf8+ {[%clk 0:00:53.8]} 51... Kf6 {[%clk 0:00:03.9]}
52. Rxe6+ {[%clk 0:00:53.6]} 52... Kxe6 {[%clk 0:00:04.8]} 53. Bb4 {[%clk
0:00:54.4]} 53... Kd5 {[%clk 0:00:05.2]} 54. Kg1 {[%clk 0:00:54.6]} 54... Ke4
{[%clk 0:00:05.8]} 55. Kf2 {[%clk 0:00:55.1]} 55... Kd3 {[%clk 0:00:06.7]} 56.
Bc3 {[%clk 0:00:55.3]} 56... f5 {[%clk 0:00:07.1]} 57. Kf3 {[%clk 0:00:55.8]}
57... g5 {[%clk 0:00:07.1]} 58. g3 {[%clk 0:00:56.3]} 58... Kc2 {[%clk
0:00:06.5]} 59. h4 {[%clk 0:00:56]} 59... gxh4 {[%clk 0:00:06.1]} 60. gxh4
{[%clk 0:00:56.9]} 60... Kb3 {[%clk 0:00:05.3]} 61. Kf4 {[%clk 0:00:57.2]} 61...
b4 {[%clk 0:00:05.2]} 62. axb4 {[%clk 0:00:58.1]} 62... Ka4 {[%clk 0:00:05.1]}
63. h5 {[%clk 0:00:57.6]} 1-0

[Event "*** SCC Grand Prix: Titled Tuesday Blitz"]
[Site "Chess.com"]
[Date "2020.10.13"]
[Round "5"]
[White "Sanan_Sjugirov"]
[Black "1977Ivan"]
[Result "1-0"]
[WhiteElo "2898"]
[BlackElo "2687"]
[TimeControl "180+1"]
[EndTime "10:56:39 PDT"]
[Termination "Sanan_Sjugirov won by resignation"]

1. d4 {[%clk 0:03:00.9]} 1... Nf6 {[%clk 0:02:59.7]} 2. c4 {[%clk 0:03:00.8]}
2... e6 {[%clk 0:03:00.1]} 3. Nf3 {[%clk 0:03:00.5]} 3... d5 {[%clk 0:02:58.7]}
4. g3 {[%clk 0:02:57.9]} 4... Be7 {[%clk 0:02:55.5]} 5. Bg2 {[%clk 0:02:57.8]}
5... Ne4 {[%clk 0:02:55.7]} 6. O-O {[%clk 0:02:51.3]} 6... f5 {[%clk 0:02:53.8]}
7. Nbd2 {[%clk 0:02:37.4]} 7... Nc6 {[%clk 0:02:51.4]} 8. e3 {[%clk 0:02:23.6]}
8... h5 {[%clk 0:02:44]} 9. Nxe4 {[%clk 0:02:02.8]} 9... dxe4 {[%clk 0:02:43.6]}
10. Nd2 {[%clk 0:01:35.5]} 10... e5 {[%clk 0:02:40.8]} 11. Nb3 {[%clk
0:01:25.7]} 11... h4 {[%clk 0:02:36.9]} 12. a3 {[%clk 0:01:14.3]} 12... Qd6
{[%clk 0:02:04.9]} 13. d5 {[%clk 0:01:03.6]} 13... Nd8 {[%clk 0:02:04.1]} 14.
Bd2 {[%clk 0:00:44.4]} 14... Qh6 {[%clk 0:02:00]} 15. g4 {[%clk 0:00:14.6]}
15... h3 {[%clk 0:01:58.3]} 16. Bh1 {[%clk 0:00:15]} 16... Nf7 {[%clk
0:01:53.5]} 17. f4 {[%clk 0:00:11.3]} 17... exf3 {[%clk 0:01:34]} 18. Qxf3
{[%clk 0:00:11.1]} 18... Ng5 {[%clk 0:01:33.1]} 19. Qg3 {[%clk 0:00:09.3]} 19...
e4 {[%clk 0:01:23.3]} 20. Bb4 {[%clk 0:00:05.8]} 20... Bxb4 {[%clk 0:00:51.7]}
21. axb4 {[%clk 0:00:06.7]} 21... O-O {[%clk 0:00:52.1]} 22. gxf5 {[%clk
0:00:04]} 22... Bxf5 {[%clk 0:00:49.9]} 23. Nd4 {[%clk 0:00:03.7]} 23... Bg6
{[%clk 0:00:38.6]} 24. Rf4 {[%clk 0:00:03.6]} 24... Bh5 {[%clk 0:00:24]} 25.
Raf1 {[%clk 0:00:03]} 25... Nf3+ {[%clk 0:00:22.3]} 26. Bxf3 {[%clk 0:00:02.9]}
26... exf3 {[%clk 0:00:23.2]} 27. Kf2 {[%clk 0:00:02.7]} 27... Rxf4 {[%clk
0:00:22]} 28. Qxf4 {[%clk 0:00:03.6]} 28... Qxf4 {[%clk 0:00:19.4]} 29. exf4
{[%clk 0:00:04.5]} 29... Re8 {[%clk 0:00:16.5]} 30. Ne6 {[%clk 0:00:04.2]} 30...
c6 {[%clk 0:00:16.7]} 31. Rg1 {[%clk 0:00:03.4]} 31... g6 {[%clk 0:00:16.3]} 32.
f5 {[%clk 0:00:03.7]} 32... cxd5 {[%clk 0:00:16.2]} 33. cxd5 {[%clk 0:00:03.8]}
33... Kf7 {[%clk 0:00:16]} 34. fxg6+ {[%clk 0:00:03.7]} 34... Bxg6 {[%clk
0:00:15.5]} 35. Kxf3 {[%clk 0:00:04.2]} 35... Kf6 {[%clk 0:00:15.6]} 36. Kf4
{[%clk 0:00:04.2]} 36... Bf7 {[%clk 0:00:15.4]} 37. Nc7 {[%clk 0:00:02.5]} 37...
Re2 {[%clk 0:00:14.6]} 38. d6 {[%clk 0:00:02.4]} 38... Rf2+ {[%clk 0:00:12.7]}
39. Ke3 {[%clk 0:00:02.5]} 39... Rxb2 {[%clk 0:00:11.1]} 40. Rf1+ {[%clk
0:00:02.7]} 40... Ke5 {[%clk 0:00:09.8]} 41. d7 {[%clk 0:00:02.8]} 41... Rb3+
{[%clk 0:00:09.9]} 42. Kd2 {[%clk 0:00:03.2]} 42... Rb2+ {[%clk 0:00:04.3]} 43.
Kc3 {[%clk 0:00:03.5]} 43... Rb3+ {[%clk 0:00:04.5]} 44. Kc2 {[%clk 0:00:03.8]}
1-0

[Event "*** SCC Grand Prix: Titled Tuesday Blitz"]
[Site "Chess.com"]
[Date "2020.10.13"]
[Round "5"]
[White "Evachess2006"]
[Black "Falcon28dz"]
[Result "0-1"]
[WhiteElo "1620"]
[BlackElo "2291"]
[TimeControl "180+1"]
[EndTime "10:56:40 PDT"]
[Termination "Falcon28dz won by resignation"]

1. e4 {[%clk 0:02:28.7]} 1... e6 {[%clk 0:02:59.3]} 2. d4 {[%clk 0:02:16.5]}
2... d5 {[%clk 0:03:00.2]} 3. exd5 {[%clk 0:02:13]} 3... exd5 {[%clk 0:03:01.1]}
4. Bd3 {[%clk 0:02:11.4]} 4... Bd6 {[%clk 0:03:00.6]} 5. Ne2 {[%clk 0:02:06.8]}
5... Nc6 {[%clk 0:03:00.6]} 6. O-O {[%clk 0:02:06]} 6... Nge7 {[%clk 0:02:59.1]}
7. Re1 {[%clk 0:02:01.7]} 7... Nb4 {[%clk 0:02:07.5]} 8. Bf4 {[%clk 0:01:50]}
8... Nxd3 {[%clk 0:02:03.5]} 9. Qxd3 {[%clk 0:01:46.5]} 9... O-O {[%clk
0:02:03.1]} 10. Bxd6 {[%clk 0:01:43.1]} 10... Qxd6 {[%clk 0:02:04]} 11. c3
{[%clk 0:01:42.6]} 11... Bf5 {[%clk 0:02:03.8]} 12. Qg3 {[%clk 0:01:37.8]} 12...
Qb6 {[%clk 0:01:57.5]} 13. b3 {[%clk 0:01:18.5]} 13... Rae8 {[%clk 0:01:42.3]}
14. Nf4 {[%clk 0:01:14.9]} 14... Nc8 {[%clk 0:01:21.7]} 15. Nd2 {[%clk
0:01:05.9]} 15... c6 {[%clk 0:01:15.7]} 16. Nh5 {[%clk 0:00:35.6]} 16... Bg6
{[%clk 0:01:15.7]} 17. Nf4 {[%clk 0:00:27.1]} 17... Qd8 {[%clk 0:01:10]} 18.
Nxg6 {[%clk 0:00:24.5]} 18... hxg6 {[%clk 0:01:06.6]} 19. Rxe8 {[%clk
0:00:22.5]} 19... Rxe8 {[%clk 0:01:06.4]} 20. Kf1 {[%clk 0:00:20.8]} 20... Nd6
{[%clk 0:01:05.4]} 21. Re1 {[%clk 0:00:20.2]} 21... Rxe1+ {[%clk 0:00:48]} 22.
Kxe1 {[%clk 0:00:21.1]} 22... Nf5 {[%clk 0:00:47]} 23. Qe5 {[%clk 0:00:18.2]}
23... Qa5 {[%clk 0:00:40]} 24. g4 {[%clk 0:00:17.8]} 24... Nh4 {[%clk
0:00:31.6]} 25. Qe8+ {[%clk 0:00:18]} 25... Kh7 {[%clk 0:00:31.2]} 26. Qe7
{[%clk 0:00:18.9]} 26... Ng2+ {[%clk 0:00:17.7]} 27. Kf1 {[%clk 0:00:18.6]}
27... Qxc3 {[%clk 0:00:17.7]} 28. Kxg2 {[%clk 0:00:14.6]} 28... Qxd2 {[%clk
0:00:18.1]} 29. Qh4+ {[%clk 0:00:14.8]} 29... Qh6 {[%clk 0:00:18.2]} 30. Qd8
{[%clk 0:00:15.4]} 30... Qf4 {[%clk 0:00:16]} 31. Qh4+ {[%clk 0:00:12.6]} 31...
Qh6 {[%clk 0:00:16.2]} 32. Qd8 {[%clk 0:00:13]} 32... g5 {[%clk 0:00:16.8]} 33.
Qe7 {[%clk 0:00:11.5]} 33... Qf6 {[%clk 0:00:17.4]} 34. Qxb7 {[%clk 0:00:09.7]}
34... Qxd4 {[%clk 0:00:16.8]} 35. Qxc6 {[%clk 0:00:09.1]} 35... Qxg4+ {[%clk
0:00:16.9]} 36. Kf1 {[%clk 0:00:07.6]} 36... Qh3+ {[%clk 0:00:15.9]} 37. Kg1
{[%clk 0:00:07.6]} 37... Qg4+ {[%clk 0:00:14.8]} 38. Kf1 {[%clk 0:00:07.2]}
38... Qe6 {[%clk 0:00:15.6]} 39. Qc2+ {[%clk 0:00:04.9]} 39... g6 {[%clk
0:00:15.4]} 40. Qd2 {[%clk 0:00:05.2]} 40... Qe5 {[%clk 0:00:14]} 41. Qc1 {[%clk
0:00:04]} 41... Kg7 {[%clk 0:00:13.8]} 42. Qd2 {[%clk 0:00:02.6]} 42... d4
{[%clk 0:00:14]} 43. Qe2 {[%clk 0:00:02.8]} 43... Qxh2 {[%clk 0:00:12]} 44. Ke1
{[%clk 0:00:03.7]} 44... Qh1+ {[%clk 0:00:11.8]} 45. Kd2 {[%clk 0:00:04.2]}
45... Qd5 {[%clk 0:00:12.7]} 46. Qd3 {[%clk 0:00:04.1]} 46... Qa5+ {[%clk
0:00:13]} 47. Ke2 {[%clk 0:00:01.8]} 47... Qxa2+ {[%clk 0:00:13.9]} 48. Kf3
{[%clk 0:00:02]} 48... Qb2 {[%clk 0:00:13.6]} 49. Kg2 {[%clk 0:00:01.3]} 49...
Qc3 {[%clk 0:00:14.5]} 50. Kf3 {[%clk 0:00:01.8]} 50... Qxd3+ {[%clk 0:00:14.7]}
51. Kg2 {[%clk 0:00:02.7]} 51... Qxb3 {[%clk 0:00:15.6]} 0-1